bitfinex-derivatives/quotes_BNBF0:USTF0_20250907
["timestamp","ask_amount","ask_price","bid_price","bid_amount"]
[1757238501409,2.56380814,869.11,867.31,0.72626638]
[1757238501609,2.56380814,869.11,867.32,0.72626638]
[1757238501806,2.56380814,869.15,867.33,0.72626638]
[1757238502010,2.56380814,869.15,867.34,0.72626638]
[1757238502209,2.56380814,869.15,867.35,0.72626638]
[1757238502509,2.56380814,869.15,867.36,0.72626638]
[1757238502707,2.56380814,869.16,867.37,0.72626638]
[1757238502911,2.56380814,869.16,867.38,0.72626638]
[1757238503109,2.56380814,869.16,867.39,0.72626638]
[1757238503308,2.56380814,869.16,867.4,0.72626638]
[1757238503611,2.56380814,869.16,867.41,0.72626638]
[1757238503811,2.56380814,869.16,867.42,0.72626638]
[1757238504010,2.56380814,869.16,867.43,0.72626638]
[1757238504207,2.56380814,869.15,867.44,0.72626638]
[1757238504409,2.56380814,869.15,867.45,0.72626638]
[1757238504609,2.56380814,869.15,867.46,0.72626638]
[1757238504808,2.56380814,869.17,867.24,0.20015817]
[1757238505007,2.56380814,869.17,867.25,0.72667734]
[1757238505212,2.56380814,869.17,867.34,0.77376271]
[1757238505512,2.56380814,869.17,867.24,0.20015817]
[1757238505513,0.20012767,869.34,867.35,0.72667734]
[1757238505707,0.20012767,869.34,867.36,0.72667734]
[1757238505911,0.20012767,869.34,867.37,0.72667734]
[1757238506111,0.20012767,869.34,867.38,0.72667734]
[1757238506309,0.20012767,869.34,867.39,0.72667734]
[1757238506509,0.20012767,869.34,867.4,0.72667734]
[1757238506712,0.20012767,869.34,867.41,0.72667734]
[1757238506912,0.20012767,869.34,867.42,0.72667734]
[1757238507111,0.20012767,869.34,867.43,0.72667734]
[1757238507313,0.20012767,869.34,867.44,0.72667734]
[1757238507513,0.20012767,869.34,867.45,0.72667734]
[1757238507711,0.20012767,869.34,867.46,0.72667734]
[1757238508014,0.20012767,869.34,867.47,0.72667734]
[1757238508313,0.20012767,869.34,867.34,0.77376271]
[1757238508314,0.20012767,869.34,867.48,0.72667734]
[1757238508510,2.56380814,869.25,867.49,0.72667734]
[1757238508714,2.56380814,869.25,867.5,0.72667734]
[1757238508912,2.56380814,869.28,867.51,0.72667734]
[1757238509211,2.56380814,869.28,867.52,0.72667734]
[1757238509515,2.56380814,869.28,867.53,0.72667734]
[1757238509710,2.56380814,869.28,867.54,0.72667734]
[1757238509911,2.56380814,869.28,867.55,0.72667734]
[1757238510111,2.56380814,869.24,867.56,0.72667734]
[1757238510311,2.56380814,869.24,867.57,0.72667734]
[1757238510512,2.56380814,869.23,867.58,0.72667734]
[1757238510811,2.56380814,869.23,867.59,0.72667734]
[1757238511014,2.56380814,869.23,867.6,0.72667734]
[1757238511214,2.56380814,869.23,867.61,0.72667734]
[1757238511410,2.56380814,869.23,867.62,0.72667734]
[1757238511710,2.56380814,869.28,867.63,0.72667734]
[1757238511909,2.56380814,869.28,867.64,0.72667734]
[1757238512112,2.56380814,869.28,867.65,0.72667734]
[1757238512312,2.56380814,869.28,867.66,0.72667734]
[1757238512514,0.20012767,869.34,867.67,0.72667734]
[1757238512713,0.20012767,869.34,867.68,0.72667734]
[1757238512915,0.20012767,869.34,867.69,0.72667734]
[1757238513114,0.20012767,869.34,867.7,0.72667734]
[1757238513315,0.20012767,869.34,867.71,0.72667734]
[1757238513518,0.20012767,869.34,867.72,0.72667734]
[1757238513719,0.20012767,869.34,867.73,0.72667734]
[1757238514021,0.20012767,869.34,867.74,0.72667734]
[1757238514217,0.20012767,869.34,867.75,0.72667734]
[1757238514520,0.20012767,869.34,867.76,0.72667734]
[1757238514721,2.76393581,869.34,867.41,0.77376271]
[1757238515216,2.76393581,869.34,867.25,0.72726787]
[1757238515520,2.76393581,869.34,867.26,0.72726787]
[1757238515718,2.56380814,869.03,867.27,0.72726787]
[1757238515919,2.56380814,869.03,867.28,0.72726787]
[1757238516121,2.56380814,869.03,867.29,0.72726787]
[1757238516319,2.56380814,868.97,867.3,0.72726787]
[1757238516523,2.56380814,868.97,867.31,0.72726787]
[1757238516823,2.56380814,868.97,867.24,0.20015817]
[1757238516824,2.56380814,868.94,867.32,0.72726787]
[1757238517119,2.56380814,868.94,867.33,0.72726787]
[1757238517320,2.56380814,868.94,867.34,0.72726787]
[1757238517518,2.56380814,868.94,867.35,0.72726787]
[1757238517720,2.56380814,868.94,867.36,0.72726787]
[1757238517925,2.56380814,868.94,867.37,0.72726787]
[1757238518119,2.56380814,868.94,867.38,0.72726787]
[1757238518321,2.56380814,868.94,867.39,0.72726787]
[1757238518522,2.56380814,868.94,867.4,0.72726787]
[1757238518720,2.56380814,868.95,867.41,0.72726787]
[1757238518924,2.56380814,868.95,867.42,0.72726787]
[1757238519122,2.56380814,868.95,867.43,0.72726787]
[1757238519320,2.56380814,868.95,867.24,0.20015817]
[1757238519524,2.56380814,868.95,867.25,0.72720247]
[1757238519721,2.56380814,868.96,867.26,0.72720247]
[1757238519925,2.56380814,868.96,867.27,0.72720247]
[1757238520124,2.56380814,868.96,867.28,0.72720247]
[1757238520421,2.56380814,868.95,867.29,0.72720247]
[1757238520619,2.56380814,868.95,867.3,0.72720247]
[1757238520824,2.56380814,868.96,867.31,0.72720247]
[1757238521021,2.56380814,868.96,867.32,0.72720247]
[1757238521321,2.56380814,868.96,867.24,0.20015817]
[1757238521322,2.56380814,868.93,867.33,0.72720247]
[1757238521525,2.56380814,868.93,867.34,0.72720247]
[1757238521721,2.56380814,868.93,867.35,0.72720247]
[1757238521925,2.56380814,868.93,867.36,0.72720247]
[1757238522125,2.56380814,868.93,867.24,0.20015817]
[1757238522126,2.56380814,868.93,867.37,0.72720247]
[1757238522321,3.60440179,869.31,867.38,0.72720247]
[1757238522322,2.56380814,868.79,867.38,0.72720247]
[1757238522526,3.60440179,869.31,867.24,0.20015817]
[1757238522527,3.60440179,869.31,867.39,0.72720247]
[1757238522726,3.60440179,869.31,867.4,0.72720247]
[1757238523026,3.60440179,869.14,867.41,0.72720247]
[1757238523226,3.60440179,869.14,867.42,0.72720247]
[1757238523523,3.60440179,869.14,867.43,0.72720247]
[1757238523728,3.60440179,869.14,867.24,0.20015817]
[1757238523924,3.60440179,869.16,867.25,0.73486391]
[1757238524226,3.60440179,869.16,867.26,0.73486391]
[1757238524427,3.60440179,869.16,867.27,0.73486391]
[1757238524627,3.60440179,869.16,867.28,0.73486391]
[1757238524926,3.60440179,869.11,867.29,0.73486391]
[1757238525127,3.60440179,869.11,867.3,0.73486391]
[1757238525324,3.60440179,869.11,867.31,0.73486391]
[1757238525526,3.60440179,869.11,867.32,0.73486391]
[1757238525730,3.60440179,869.11,867.33,0.73486391]
[1757238525930,3.60440179,869.11,867.34,0.73486391]
[1757238526128,3.60440179,869.14,867.35,0.73486391]
[1757238526326,3.60440179,869.14,867.36,0.73486391]
[1757238526530,3.60440179,869.14,867.37,0.73486391]
[1757238526728,3.60440179,869.14,867.38,0.73486391]
[1757238526931,3.60440179,869.14,867.39,0.73486391]
[1757238527230,3.60440179,869.14,867.4,0.73486391]
[1757238527428,3.60440179,869.14,867.41,0.73486391]
[1757238527628,3.60440179,869.14,867.42,0.73486391]
[1757238527828,3.60440179,869.14,867.43,0.73486391]
[1757238528028,3.60440179,869.15,867.44,0.73486391]
[1757238528231,3.60440179,869.15,867.45,0.73486391]
[1757238528527,3.60440179,869.15,867.25,0.77376271]
[1757238528528,3.60440179,869.15,867.46,0.73486391]
[1757238528732,3.60440179,869.15,867.47,0.73486391]
[1757238528937,3.60440179,869.15,867.48,0.73486391]
[1757238529132,0.20012767,869.34,867.49,0.73486391]
[1757238529332,0.20012767,869.34,867.5,0.73486391]
[1757238529534,0.20012767,869.34,867.51,0.73486391]
[1757238529735,0.20012767,869.34,867.52,0.73486391]
[1757238529934,0.20012767,869.34,867.53,0.73486391]
[1757238530132,0.20012767,869.34,867.54,0.73486391]
[1757238530432,0.20012767,869.34,867.55,0.73486391]
[1757238530734,0.20012767,869.34,867.56,0.73486391]
[1757238530936,0.20012767,869.34,867.57,0.73486391]
[1757238531133,0.20012767,869.34,867.24,0.20015817]
[1757238531333,0.20012767,869.34,867.25,0.73502834]
[1757238531637,0.20012767,869.34,867.26,0.73502834]
[1757238531937,0.20012767,869.34,867.27,0.73502834]
[1757238532233,0.20012767,869.34,867.28,0.73502834]
[1757238532532,0.20012767,869.34,867.29,0.73502834]
[1757238532736,0.20012767,869.34,867.3,0.73502834]
[1757238532932,0.20012767,869.34,867.31,0.73502834]
[1757238533132,0.20012767,869.34,867.32,0.73502834]
[1757238533336,0.20012767,869.34,867.24,0.20015817]
[1757238533337,0.20012767,869.34,867.33,0.73502834]
[1757238533532,0.20012767,869.34,867.34,0.73502834]
[1757238533836,0.20012767,869.34,867.35,0.73502834]
[1757238534036,0.20012767,869.34,867.36,0.73502834]
[1757238534236,0.20012767,869.34,867.37,0.73502834]
[1757238534437,0.20012767,869.34,867.24,0.20015817]
[1757238534438,0.20012767,869.34,867.38,0.73502834]
[1757238534737,0.20012767,869.34,867.39,0.73502834]
[1757238534937,0.20012767,869.34,867.4,0.73502834]
[1757238535137,0.20012767,869.34,867.41,0.73502834]
[1757238535434,0.20012767,869.34,867.42,0.73502834]
[1757238535633,0.20012767,869.34,867.43,0.73502834]
[1757238535831,0.20012767,869.34,867.24,0.20015817]
[1757238535832,0.20012767,869.34,867.44,0.73502834]
[1757238536033,0.20012767,869.34,867.45,0.73502834]
[1757238536238,0.20012767,869.34,867.46,0.73502834]
[1757238536438,0.20012767,869.34,867.47,0.73502834]
[1757238536634,0.20012767,869.34,867.48,0.73502834]
[1757238536838,0.20012767,869.34,867.49,0.73502834]
[1757238537135,0.20012767,869.34,867.5,0.73502834]
[1757238537338,0.20012767,869.34,867.24,0.20015817]
[1757238537339,0.20012767,869.34,867.51,0.73502834]
[1757238537537,0.20012767,869.34,867.52,0.73502834]
[1757238537738,0.20012767,869.34,867.53,0.73502834]
[1757238537935,0.20012767,869.34,867.24,0.20015817]
[1757238538238,0.20012767,869.34,867.25,0.73388692]
[1757238538438,0.20012767,869.34,867.26,0.73388692]
[1757238538639,0.20012767,869.34,867.27,0.73388692]
[1757238538934,2.56990038,869.04,867.28,0.73388692]
[1757238539134,2.56990038,869.04,867.29,0.73388692]
[1757238539335,2.56990038,869.03,867.3,0.73388692]
[1757238539537,2.56990038,869.03,867.31,0.73388692]
[1757238539737,2.56990038,869.03,867.32,0.73388692]
[1757238539934,2.56990038,869.03,867.33,0.73388692]
[1757238540135,2.56990038,869.03,867.34,0.73388692]
[1757238540339,2.56990038,869.03,867.35,0.73388692]
[1757238540537,2.56990038,869.03,867.36,0.73388692]
[1757238540736,2.56990038,869.03,867.37,0.73388692]
[1757238541036,2.56990038,869.04,867.38,0.73388692]
[1757238541337,1.54288483,868.01,867.39,0.73388692]
[1757238541537,1.24006507,868.65,867.4,0.73388692]
[1757238541737,1.24006507,868.65,867.41,0.73388692]
[1757238542038,3.60440179,868.97,867.42,0.73388692]
[1757238542241,3.60440179,868.97,867.43,0.73388692]
[1757238542537,3.60440179,868.97,867.44,0.73388692]
[1757238542738,3.60440179,869.29,867.45,0.73388692]
[1757238543038,3.60440179,869.29,867.46,0.73388692]
[1757238543242,3.60440179,869.29,867.47,0.73388692]
[1757238543442,3.60440179,869.29,867.48,0.73388692]
[1757238543739,3.60440179,869.29,867.49,0.73388692]
[1757238543937,3.60440179,869.29,867.5,0.73388692]
[1757238544138,3.60440179,869.29,867.24,0.20015817]
[1757238544342,3.60440179,869.29,867.25,0.74373677]
[1757238544639,3.60440179,869.09,867.26,0.74373677]
[1757238544942,3.60440179,869.09,867.27,0.74373677]
[1757238545239,3.60440179,869.09,867.43,0.77376271]
[1757238545437,3.60440179,869.09,867.44,0.74373677]
[1757238545638,3.60440179,869.09,867.32,0.77376271]
[1757238545639,3.60440179,869.09,867.45,0.74373677]
[1757238545838,0.20012767,869.34,867.46,0.74373677]
[1757238546041,0.20012767,869.34,867.47,0.74373677]
[1757238546242,0.20012767,869.34,867.48,0.74373677]
[1757238546437,0.20012767,869.34,867.49,0.74373677]
[1757238546741,0.20012767,869.34,867.5,0.74373677]
[1757238546940,0.20012767,869.34,867.51,0.74373677]
[1757238547139,0.20012767,869.34,867.52,0.74373677]
[1757238547336,0.20012767,869.34,867.53,0.74373677]
[1757238547539,0.20012767,869.34,867.54,0.74373677]
[1757238547840,0.20012767,869.34,867.55,0.74373677]
[1757238548037,0.20012767,869.34,867.56,0.74373677]
[1757238548241,0.20012767,869.34,867.57,0.74373677]
[1757238548439,0.20012767,869.34,867.58,0.74373677]
[1757238548639,0.20012767,869.34,867.59,0.74373677]
[1757238548839,0.20012767,869.34,867.6,0.74373677]
[1757238549039,0.20012767,869.34,867.61,0.74373677]
[1757238549339,0.20012767,869.34,867.62,0.74373677]
[1757238549539,0.20012767,869.34,867.63,0.74373677]
[1757238549739,0.20012767,869.34,867.64,0.74373677]
[1757238549942,0.20012767,869.34,867.65,0.74373677]
[1757238550141,0.20012767,869.34,867.66,0.74373677]
[1757238550345,0.20012767,869.34,867.67,0.74373677]
[1757238550645,0.20012767,869.34,867.68,0.74373677]
[1757238550841,0.20012767,869.34,867.69,0.74373677]
[1757238551142,0.20012767,869.34,867.7,0.74373677]
[1757238551342,0.20012767,869.34,867.71,0.74373677]
[1757238551541,0.20012767,869.34,867.29,0.77376271]
[1757238551542,0.20012767,869.34,867.72,0.74373677]
[1757238551745,0.20012767,869.34,867.73,0.74373677]
[1757238552042,0.20012767,869.34,867.74,0.74373677]
[1757238552344,0.20012767,869.34,867.75,0.74373677]
[1757238552541,0.20012767,869.34,867.76,0.74373677]
[1757238552748,0.20012767,869.34,867.3,0.77376271]
[1757238554242,0.20012767,869.34,867.29,0.77376271]
[1757238555246,0.20012767,869.34,867.3,0.74358356]
[1757238555446,0.20012767,869.34,867.31,0.74358356]
[1757238555644,2.57128541,869.16,867.32,0.74358356]
[1757238555843,2.57128541,869.16,867.33,0.74358356]
[1757238556043,2.57128541,869.16,867.34,0.74358356]
[1757238556346,2.57128541,869.16,867.35,0.74358356]
[1757238556543,2.57128541,869.16,867.36,0.74358356]
[1757238556742,2.57128541,869.16,867.37,0.74358356]
[1757238556946,2.57128541,869.16,867.38,0.74358356]
[1757238557148,2.57128541,869.16,867.39,0.74358356]
[1757238557444,2.57128541,869.16,867.4,0.74358356]
[1757238557644,2.57128541,869.16,867.24,0.20015817]
[1757238557849,2.57128541,868.81,867.25,0.74352651]
[1757238558148,2.57128541,868.81,867.26,0.74352651]
[1757238558350,2.57128541,868.77,867.27,0.74352651]
[1757238558549,2.57128541,868.77,867.28,0.74352651]
[1757238558849,3.60440179,869.13,867.24,0.20015817]
[1757238558850,2.57128541,868.62,867.29,0.74352651]
[1757238559052,3.60440179,869.13,867.3,0.74352651]
[1757238559350,3.60440179,868.94,867.31,0.74352651]
[1757238559550,3.60440179,868.94,867.32,0.74352651]
[1757238559750,3.60440179,868.94,867.33,0.74352651]
[1757238559951,3.60440179,868.94,867.34,0.74352651]
[1757238560148,3.60440179,868.94,867.35,0.74352651]
[1757238560355,3.60440179,869.0,867.36,0.74352651]
[1757238560655,3.60440179,869.0,867.37,0.74352651]
[1757238560956,3.60440179,869.0,867.38,0.74352651]
[1757238561253,3.60440179,869.0,867.39,0.74352651]
[1757238561452,0.20011386,869.45,867.4,0.74352651]
[1757238561655,0.20011386,869.45,867.41,0.74352651]
[1757238561858,0.20011386,869.45,867.42,0.74352651]
[1757238562056,0.20011386,869.45,867.43,0.74352651]
[1757238562253,0.20011386,869.45,867.44,0.74352651]
[1757238562453,0.20011386,869.45,867.45,0.74352651]
[1757238562652,0.20011386,869.45,867.46,0.74352651]
[1757238562856,0.20011386,869.45,867.47,0.74352651]
[1757238563153,0.20011386,869.45,867.48,0.74352651]
[1757238563453,0.20011386,869.45,867.49,0.74352651]
[1757238563754,0.20011386,869.45,867.5,0.74352651]
[1757238563956,0.20011386,869.45,867.51,0.74352651]
[1757238564154,0.20011386,869.45,867.52,0.74352651]
[1757238564458,0.20011386,869.45,867.53,0.74352651]
[1757238564757,0.20011386,869.45,867.24,0.20015817]
[1757238564953,0.20011386,869.45,867.25,0.7400649]
[1757238565156,0.20011386,869.45,867.26,0.7400649]
[1757238565356,0.20011386,869.45,867.27,0.7400649]
[1757238565657,0.20011386,869.45,867.24,0.20015817]
[1757238565658,0.20011386,869.45,867.28,0.7400649]
[1757238565853,0.20011386,869.45,867.29,0.7400649]
[1757238566056,0.20011386,869.45,867.3,0.7400649]
[1757238566355,0.20011386,869.45,867.31,0.7400649]
[1757238566559,0.20011386,869.45,867.32,0.7400649]
[1757238566757,0.20011386,869.45,867.33,0.7400649]
[1757238566955,0.20011386,869.45,867.34,0.7400649]
[1757238567157,0.20011386,869.45,867.35,0.7400649]
[1757238567356,0.20011386,869.45,867.36,0.7400649]
[1757238567659,0.20011386,869.45,867.37,0.7400649]
[1757238567859,0.20011386,869.45,867.38,0.7400649]
[1757238568059,0.20011386,869.45,867.39,0.7400649]
[1757238568260,0.20011386,869.45,867.4,0.7400649]
[1757238568556,2.57202062,869.35,867.41,0.7400649]
[1757238568754,2.57202062,869.35,867.42,0.7400649]
[1757238568955,2.57202062,869.35,867.43,0.7400649]
[1757238569260,2.57202062,869.37,867.44,0.7400649]
[1757238569557,2.57202062,869.37,867.45,0.7400649]
[1757238569760,2.57202062,869.37,867.46,0.7400649]
[1757238569961,2.57202062,869.37,867.47,0.7400649]
[1757238570161,2.57202062,869.37,867.48,0.7400649]
[1757238570361,2.57202062,869.37,867.49,0.7400649]
[1757238570558,2.77209248,869.58,867.5,0.7400649]
[1757238570759,2.77209248,869.58,867.51,0.7400649]
[1757238571062,2.77209248,869.58,867.52,0.7400649]
[1757238571263,2.77209248,869.58,867.53,0.7400649]
[1757238571464,2.77209248,869.58,867.54,0.7400649]
[1757238571660,0.20007186,869.58,867.55,0.7400649]
[1757238571862,0.20007186,869.58,867.56,0.7400649]
[1757238572060,0.20007186,869.58,867.57,0.7400649]
[1757238572261,0.20007186,869.58,867.58,0.7400649]
[1757238572461,0.20007186,869.58,867.59,0.7400649]
[1757238572664,0.20007186,869.58,867.6,0.7400649]
[1757238572665,2.57202062,869.57,867.6,0.7400649]
[1757238572965,2.57202062,869.57,867.61,0.7400649]
[1757238573266,2.57202062,869.57,867.62,0.7400649]
[1757238573567,2.57202062,869.57,867.63,0.7400649]
[1757238573763,2.77209248,869.58,867.64,0.7400649]
[1757238573967,2.77209248,869.58,867.65,0.7400649]
[1757238574168,2.77209248,869.58,867.66,0.7400649]
[1757238574368,2.77209248,869.58,867.67,0.7400649]
[1757238574566,2.77209248,869.58,867.25,0.77376271]
[1757238574870,0.20007186,869.58,867.26,0.73906275]
[1757238575169,0.20007186,869.58,867.27,0.73906275]
[1757238575370,2.57202062,869.56,867.28,0.73906275]
[1757238575570,2.57202062,869.56,867.29,0.73906275]
[1757238575870,2.57202062,869.56,867.3,0.73906275]
[1757238576069,2.57202062,869.56,867.31,0.73906275]
[1757238576271,2.57202062,869.57,867.32,0.73906275]
[1757238576468,0.8,869.69,867.33,0.73906275]
[1757238576673,0.8,869.69,867.34,0.73906275]
[1757238576869,0.8,869.69,867.35,0.73906275]
[1757238577169,0.8,869.69,867.36,0.73906275]
[1757238577372,0.8,869.69,867.37,0.73906275]
[1757238577570,0.8,869.69,867.38,0.73906275]
[1757238577769,0.8,869.69,867.39,0.73906275]
[1757238577975,0.8,869.69,867.4,0.73906275]
[1757238578274,0.8,869.69,867.41,0.73906275]
[1757238578573,0.8,869.69,867.24,0.20015817]
[1757238578574,0.8,869.69,867.42,0.73906275]
[1757238578775,0.8,869.69,867.43,0.73906275]
[1757238578973,0.8,869.69,867.44,0.73906275]
[1757238579171,0.8,869.69,867.45,0.73906275]
[1757238579372,0.8,869.69,867.46,0.73906275]
[1757238579670,0.8,869.69,867.47,0.73906275]
[1757238579873,0.8,869.69,867.48,0.73906275]
[1757238580077,0.8,869.69,867.49,0.73906275]
[1757238580270,0.8,869.69,867.5,0.73906275]
[1757238580475,0.8,869.69,867.51,0.73906275]
[1757238580676,0.8,869.69,867.52,0.73906275]
[1757238580878,0.8,869.69,867.53,0.73906275]
[1757238581173,0.8,869.69,867.54,0.73906275]
[1757238581374,0.8,869.69,867.55,0.73906275]
[1757238581575,0.8,869.69,867.56,0.73906275]
[1757238581877,0.8,869.69,867.57,0.73906275]
[1757238582075,0.8,869.69,867.58,0.73906275]
[1757238582275,0.8,869.69,867.24,0.97392088]
[1757238582276,0.8,869.69,867.59,0.73906275]
[1757238582478,0.8,869.69,867.6,0.73906275]
[1757238582678,0.8,869.69,867.61,0.73906275]
[1757238582975,0.8,869.69,867.62,0.73906275]
[1757238583178,0.8,869.69,867.63,0.73906275]
[1757238583374,0.8,869.69,867.64,0.73906275]
[1757238583578,0.8,869.69,867.65,0.73906275]
[1757238583776,0.8,869.69,867.66,0.73906275]
[1757238584080,0.8,869.69,867.67,0.73906275]
[1757238584281,0.8,869.69,867.24,0.20015817]
[1757238584478,0.8,869.69,867.25,0.73764323]
[1757238584682,0.8,869.69,867.26,0.73764323]
[1757238584883,0.8,869.69,867.27,0.73764323]
[1757238585178,0.8,869.69,867.28,0.73764323]
[1757238585482,0.8,869.69,867.29,0.73764323]
[1757238585682,0.8,869.69,867.3,0.73764323]
[1757238585878,0.8,869.69,867.31,0.73764323]
[1757238586082,0.8,869.69,867.32,0.73764323]
[1757238586378,0.8,869.69,867.33,0.73764323]
[1757238586583,0.8,869.69,867.34,0.73764323]
[1757238586782,0.8,869.69,867.35,0.73764323]
[1757238586980,0.8,869.69,867.36,0.73764323]
[1757238587285,0.8,869.69,867.37,0.73764323]
[1757238587584,0.8,869.69,867.38,0.73764323]
[1757238587781,0.8,869.69,867.39,0.73764323]
[1757238588084,0.8,869.69,867.4,0.73764323]
[1757238588383,0.8,869.69,867.41,0.73764323]
[1757238588586,0.8,869.69,867.42,0.73764323]
[1757238588785,0.8,869.69,867.43,0.73764323]
[1757238588983,0.8,869.69,867.44,0.73764323]
[1757238589185,0.8,869.69,867.45,0.73764323]
[1757238589485,0.8,869.69,867.46,0.73764323]
[1757238589684,0.8,869.69,867.47,0.73764323]
[1757238589884,0.8,869.69,867.48,0.73764323]
[1757238590083,0.8,869.69,867.49,0.73764323]
[1757238590283,0.8,869.69,867.5,0.73764323]
[1757238590483,0.8,869.69,867.51,0.73764323]
[1757238590686,0.8,869.69,867.52,0.73764323]
[1757238590886,0.8,869.69,867.53,0.73764323]
[1757238591186,0.8,869.69,867.54,0.73764323]
[1757238591384,0.8,869.69,867.55,0.73764323]
[1757238591588,0.8,869.69,867.56,0.73764323]
[1757238591788,0.8,869.69,867.57,0.73764323]
[1757238591988,0.8,869.69,867.58,0.73764323]
[1757238592286,0.8,869.69,867.59,0.73764323]
[1757238592489,0.8,869.69,867.6,0.73764323]
[1757238592689,0.8,869.69,867.61,0.73764323]
[1757238592889,0.8,869.69,867.62,0.73764323]
[1757238593089,0.8,869.69,867.63,0.73764323]
[1757238593286,0.8,869.69,867.64,0.73764323]
[1757238593489,0.8,869.69,867.65,0.73764323]
[1757238593689,0.8,869.69,867.66,0.73764323]
[1757238593889,0.8,869.69,867.67,0.73764323]
[1757238594086,0.8,869.69,867.68,0.73764323]
[1757238594387,0.8,869.69,867.69,0.73764323]
[1757238594586,0.8,869.69,867.7,0.73764323]
[1757238594791,0.8,869.69,867.27,0.77376271]
[1757238594988,0.8,869.69,867.28,0.737056]
[1757238595190,0.8,869.69,867.27,0.77376271]
[1757238595191,0.8,869.69,867.29,0.737056]
[1757238595388,0.8,869.69,867.49,0.77376271]
[1757238595590,0.8,869.69,867.5,1.51081871]
[1757238595790,0.8,869.69,867.51,0.737056]
[1757238596089,0.8,869.69,867.52,0.737056]
[1757238596292,0.8,869.69,867.53,0.737056]
[1757238596491,0.8,869.69,867.54,0.737056]
[1757238596692,0.8,869.69,867.55,0.737056]
[1757238596994,0.8,869.69,867.56,0.737056]
[1757238597192,0.8,869.69,867.57,0.737056]
[1757238597389,0.8,869.69,867.58,0.737056]
[1757238597693,0.8,869.69,867.59,0.737056]
[1757238597887,0.8,869.69,867.6,0.737056]
[1757238598090,0.8,869.69,867.61,0.737056]
[1757238598292,0.8,869.69,867.62,0.737056]
[1757238598493,0.8,869.69,867.63,0.737056]
[1757238598694,0.8,869.69,867.64,0.737056]
[1757238598893,0.8,869.69,867.65,0.737056]
[1757238599189,0.8,869.69,867.66,0.737056]
[1757238599393,0.8,869.69,867.67,0.737056]
[1757238599590,0.8,869.69,867.68,0.737056]
[1757238599789,0.8,869.69,867.69,0.737056]
[1757238600088,0.8,869.69,867.52,0.77376271]
[1757238600089,0.8,869.69,867.7,0.737056]
[1757238600290,0.8,869.69,867.71,0.737056]
[1757238600488,0.8,869.69,867.72,0.737056]
[1757238600691,0.8,869.69,867.73,0.737056]
[1757238600993,0.8,869.69,867.74,0.737056]
[1757238601190,0.8,869.69,867.75,0.737056]
[1757238601390,0.8,869.69,867.76,0.737056]
[1757238601592,0.8,869.69,867.77,0.737056]
[1757238601790,0.8,869.69,867.78,0.737056]
[1757238601989,0.8,869.69,867.79,0.737056]
[1757238602194,0.8,869.69,867.8,0.737056]
[1757238602393,0.8,869.69,867.81,0.737056]
[1757238602592,0.8,869.69,867.82,0.737056]
[1757238602792,0.8,869.69,867.83,0.737056]
[1757238603090,0.8,869.69,867.84,0.737056]
[1757238603394,0.8,869.69,867.51,0.77376271]
[1757238603395,0.8,869.69,867.85,0.737056]
[1757238603689,0.8,869.69,867.86,0.737056]
[1757238603895,0.8,869.69,867.87,0.737056]
[1757238604091,0.8,869.69,867.88,0.737056]
[1757238604291,0.8,869.69,867.89,0.737056]
[1757238604593,0.8,869.69,867.9,0.737056]
[1757238604795,0.8,869.69,867.53,0.77376271]
[1757238604997,0.8,869.69,867.54,0.73707326]
[1757238605196,0.8,869.69,867.55,0.73707326]
[1757238605396,0.8,869.69,867.56,0.73707326]
[1757238605596,2.57202062,869.56,867.57,0.73707326]
[1757238605798,2.57202062,869.56,867.58,0.73707326]
[1757238606096,2.57202062,869.5,867.59,0.73707326]
[1757238606295,2.57202062,869.5,867.26,0.77376271]
[1757238606296,2.57202062,869.5,867.6,0.73707326]
[1757238606495,2.57202062,869.5,867.61,0.73707326]
[1757238606693,2.57202062,869.49,867.62,0.73707326]
[1757238606895,2.57202062,869.49,867.26,0.77376271]
[1757238607195,2.57202062,869.49,867.27,0.73717878]
[1757238607398,2.57202062,869.49,867.28,0.73717878]
[1757238607595,2.57202062,869.49,867.29,0.73717878]
[1757238607799,2.57202062,869.56,867.3,0.73717878]
[1757238608000,2.57202062,869.56,867.31,0.73717878]
[1757238608197,2.57202062,869.56,867.24,0.20015817]
[1757238608198,2.57202062,869.56,867.32,0.73717878]
[1757238608401,2.57202062,869.08,867.33,0.73717878]
[1757238608696,2.57202062,869.08,867.34,0.73717878]
[1757238609001,2.57202062,869.07,867.35,0.73717878]
[1757238609201,2.57202062,869.07,867.36,0.73717878]
[1757238609398,2.57202062,869.0,867.37,0.73717878]
[1757238609602,1.13608925,869.0,867.38,0.73717878]
[1757238609802,1.13608925,869.0,867.39,0.73717878]